bitfinex-derivatives/quotes_BTCF0:USTF0_20250411
["timestamp","ask_amount","ask_price","bid_price","bid_amount"]
[1744337027856,0.4854565,80284.0,80283.0,0.1246565]
[1744337028062,0.27311139,80284.0,80283.0,0.1246565]
[1744337029459,0.14845489,80284.0,80283.0,0.1246565]
[1744337030045,0.18613642,80290.0,80286.0,0.0623258]
[1744337030251,0.18613642,80290.0,80289.0,0.1246472]
[1744337031354,0.31078202,80290.0,80289.0,0.1246472]
[1744337032149,0.1246487,80288.0,80287.0,0.1548]
[1744337032461,0.4854487,80288.0,80287.0,0.1548]
[1744337032656,0.1246487,80288.0,80287.0,0.1548]
[1744337033047,0.1246487,80288.0,80287.0,0.2794503]
[1744337034360,0.01671,80292.0,80291.0,0.1246441]
[1744337035850,0.01671,80292.0,80287.0,0.5156]
[1744337036051,0.0766,80291.0,80290.0,0.1487]
[1744337036459,0.1389221,80291.0,80290.0,0.28274643]
[1744337036868,0.1246441,80291.0,80290.0,0.34506863]
[1744337037362,0.1246441,80291.0,80290.0,0.3356678]
[1744337039272,0.1246441,80291.0,80290.0,0.6964678]
[1744337039570,0.074,80294.0,80293.0,0.124641]
[1744337039866,0.2012372,80296.0,80295.0,0.1246379]
[1744337040575,0.2012372,80296.0,80295.0,0.2704379]
[1744337041664,0.1246441,80291.0,80290.0,0.00946966]
[1744337041863,0.1246549,80284.0,80283.0,0.1977556]
[1744337042068,0.1246549,80284.0,80283.0,0.0731]
[1744337042467,0.1246549,80284.0,80283.0,0.1977565]
[1744337042671,0.2805549,80284.0,80283.0,0.0731]
[1744337042862,0.2044549,80284.0,80283.0,0.0731]
[1744337043169,0.2044549,80284.0,80283.0,0.1977565]
[1744337043367,0.1246611,80280.0,80279.0,0.0724]
[1744337043666,0.1246627,80279.0,80278.0,0.00930137]
[1744337043863,0.2805627,80279.0,80278.0,0.00930137]
[1744337044059,0.2805627,80279.0,80272.0,0.0724]
[1744337044060,0.1246674,80276.0,80272.0,0.0724]
[1744337044769,0.1246674,80276.0,80275.0,0.12485572]
[1744337044962,0.2818674,80276.0,80275.0,0.12485572]
[1744337046963,0.2818674,80276.0,80275.0,0.00018682]
[1744337049567,0.2818674,80276.0,80275.0,0.12485572]
[1744337049971,0.2818674,80276.0,80275.0,0.00018682]
[1744337054174,0.124672,80265.0,80264.0,0.00923121]
[1744337054479,0.485472,80265.0,80264.0,0.00923121]
[1744337054969,0.1246875,80255.0,80254.0,0.3608]
[1744337055178,0.1246875,80255.0,80254.0,0.5656891]
[1744337056473,0.0623347,80267.0,80262.0,0.1246766]
[1744337056672,0.12486192,80263.0,80262.0,0.1246766]
[1744337056874,0.12486192,80263.0,80262.0,0.2744766]
[1744337057676,0.12486192,80263.0,80262.0,0.1498]
[1744337057873,0.1870303,80257.0,80256.0,0.1246852]
[1744337058176,0.1246875,80255.0,80254.0,0.37021543]
[1744337058979,0.1246875,80255.0,80254.0,0.49490453]
[1744337061775,0.2038875,80255.0,80254.0,0.37021543]
[1744337061977,0.2038875,80255.0,80254.0,0.3608]
[1744337062179,0.2799875,80255.0,80254.0,0.3608]
[1744337062673,0.1246922,80252.0,80251.0,0.00049843]
[1744337062982,0.13487126,80252.0,80251.0,0.00049843]
[1744337066179,0.13487126,80252.0,80251.0,0.12519213]
[1744337067576,0.13487126,80252.0,80251.0,0.00049843]
[1744337068280,0.13487126,80252.0,80251.0,0.19839213]
[1744337068583,0.01667,80254.0,80253.0,0.1246906]
[1744337069877,0.1246922,80252.0,80251.0,0.43449843]
[1744337070182,0.1246922,80252.0,80251.0,0.07369843]
[1744337070367,0.1246922,80252.0,80251.0,0.19839213]
[1744337072379,0.1246922,80252.0,80251.0,0.00049843]
[1744337072577,0.1989922,80252.0,80251.0,0.00049843]
[1744337075485,0.31070591,80252.0,80251.0,0.00049843]
[1744337076489,0.1247124,80239.0,80229.0,0.1247266]
[1744337076783,0.1247124,80239.0,80230.0,0.1247262]
[1744337076976,0.1247124,80239.0,80228.0,0.0754]
[1744337077377,0.2733124,80239.0,80228.0,0.0754]
[1744337077584,0.1247279,80229.0,80228.0,0.0754]
[1744337077781,0.1247279,80229.0,80228.0,0.08478209]
[1744337078377,0.2683279,80229.0,80228.0,0.0754]
[1744337080285,0.1247295,80228.0,80227.0,0.00049858]
[1744337080481,0.2004295,80228.0,80227.0,0.00049858]
[1744337080783,0.3440295,80228.0,80227.0,0.00049858]
[1744337082882,0.3440295,80228.0,80227.0,0.00975438]
[1744337084880,0.3440295,80228.0,80227.0,0.00049858]
[1744337086590,0.1247481,80216.0,80215.0,0.0747]
[1744337086892,0.4855481,80216.0,80215.0,0.1528]
[1744337087288,0.4855481,80216.0,80215.0,0.16216717]
[1744337089389,0.4855481,80216.0,80215.0,0.28691687]
[1744337093102,0.18729344,80224.0,80223.0,0.1247373]
[1744337093881,0.18729344,80224.0,80223.0,0.2796373]
[1744337106103,0.18729344,80224.0,80223.0,0.1549]
[1744337108508,0.54809344,80224.0,80223.0,0.1549]
[1744337108710,0.1247481,80216.0,80215.0,0.00936717]
[1744337108898,0.1247513,80214.0,80213.0,0.0721]
[1744337109298,0.2238,80215.0,80203.0,0.00049873]
[1744337109299,0.1247668,80204.0,80203.0,0.00049873]
[1744337109509,0.1247668,80204.0,80203.0,0.19926713]
[1744337109809,0.1247668,80204.0,80203.0,0.08381941]
[1744337110700,0.1247668,80204.0,80203.0,0.00049873]
[1744337110899,0.13541969,80204.0,80203.0,0.00049873]
[1744337111506,0.28601969,80204.0,80203.0,0.00049873]
[1744337112009,0.2038668,80204.0,80203.0,0.00049873]
[1744337112606,0.21470767,80204.0,80203.0,0.00049873]
[1744337113198,0.28620767,80204.0,80203.0,0.00049873]
[1744337115805,0.1247715,80201.0,80200.0,0.1]
[1744337119414,0.1247995,80183.0,80182.0,0.0722]
[1744337119607,0.1247995,80183.0,80182.0,0.2141]
[1744337120115,0.1247995,80183.0,80182.0,0.266701]
[1744337120716,0.1247995,80183.0,80182.0,0.27611752]
[1744337121313,0.1247995,80183.0,80182.0,0.15131652]
[1744337122115,0.1950995,80183.0,80182.0,0.15131652]
[1744337122416,0.1950995,80183.0,80182.0,0.27611752]
[1744337124118,0.1950995,80183.0,80182.0,0.15131652]
[1744337125315,0.1950995,80183.0,80182.0,0.1419]
[1744337125916,0.5558995,80183.0,80182.0,0.1419]
[1744337126108,0.1950995,80183.0,80182.0,0.1419]
[1744337127615,0.1950995,80183.0,80182.0,0.266701]
[1744337128516,0.1247995,80183.0,80182.0,0.266701]
[1744337130921,0.1247917,80190.0,80189.0,0.1247901]
[1744337131127,0.1247917,80190.0,80189.0,0.4855901]
[1744337131527,0.1247917,80190.0,80189.0,0.1247901]
[1744337133421,0.00018707,80191.0,80187.0,0.0623959]
[1744337133729,0.00018707,80191.0,80190.0,0.4855886]
[1744337139244,0.17420321,80204.0,80190.0,0.4855886]
[1744337139245,0.0623849,80202.0,80201.0,0.1871534]
[1744337139626,0.23658741,80204.0,80203.0,0.1247684]
[1744337140135,0.23268741,80204.0,80203.0,0.1247684]
[1744337142334,0.10791971,80204.0,80203.0,0.1247684]
[1744337142725,0.23268651,80204.0,80203.0,0.1247684]
[1744337143538,0.1247668,80204.0,80203.0,0.1247684]
[1744337147336,0.1247746,80199.0,80198.0,0.4855745]
[1744337147542,0.1247746,80199.0,80198.0,0.1962745]
[1744337148940,0.0689,80202.0,80198.0,0.2042873]
[1744337149241,0.14895196,80213.0,80208.0,0.1247606]
[1744337149441,0.14895196,80213.0,80209.0,0.124759]
[1744337149643,0.4855575,80210.0,80209.0,0.124759]
[1744337151545,0.5540575,80210.0,80209.0,0.124759]
[1744337152445,0.1932575,80210.0,80209.0,0.124759]
[1744337156247,0.0685,80210.0,80209.0,0.124759]
[1744337156544,0.00018707,80212.0,80211.0,0.1247559]
[1744337157851,0.14423903,80216.0,80215.0,0.1247497]
[1744337158154,0.54693642,80221.0,80213.0,0.0623757]
[1744337158155,0.18613642,80221.0,80220.0,0.1247419]
[1744337158447,0.18613642,80221.0,80220.0,0.4855419]
[1744337158653,0.18613642,80221.0,80220.0,0.1247419]
[1744337158654,0.31087682,80221.0,80220.0,0.1247419]
[1744337158839,0.1247419,80220.0,80219.0,0.1424]
[1744337159156,0.1951419,80220.0,80219.0,0.2671435]
[1744337159451,0.2658419,80220.0,80219.0,0.1247435]
[1744337160038,0.18613642,80221.0,80220.0,0.1247419]
[1744337160847,0.1345671,80225.0,80224.0,0.1247357]
[1744337161058,0.1340671,80225.0,80224.0,0.1247357]
[1744337161444,0.0717,80225.0,80224.0,0.1247357]
[1744337161651,0.1964341,80225.0,80224.0,0.2712357]
[1744337162342,0.0717,80225.0,80224.0,0.2712357]
[1744337162653,0.0749,80228.0,80225.0,0.1247341]
[1744337162857,0.0749,80228.0,80225.0,0.4948563]
[1744337163157,0.00018707,80229.0,80225.0,0.5806886]
[1744337163359,0.00018707,80229.0,80228.0,0.1247295]
[1744337166258,0.12491497,80229.0,80228.0,0.1247295]
[1744337166453,0.1247326,80226.0,80225.0,0.0093222]
[1744337166654,0.1247528,80213.0,80203.0,0.02178873]
[1744337166849,0.1247528,80213.0,80212.0,0.12494147]
[1744337167350,0.1247528,80213.0,80212.0,0.13440156]
[1744337167549,0.5555528,80213.0,80212.0,0.00964716]
[1744337168360,0.5555528,80213.0,80212.0,0.13440156]
[1744337168555,0.5555528,80213.0,80212.0,0.00018707]
[1744337169451,0.5555528,80213.0,80212.0,0.12494147]
[1744337172963,0.5555528,80213.0,80212.0,0.00018707]
[1744337175766,0.6240528,80213.0,80212.0,0.00018707]
[1744337176059,0.6240528,80213.0,80212.0,0.12494147]
[1744337177066,0.2632528,80213.0,80212.0,0.12494147]
[1744337177260,0.6240528,80213.0,80212.0,0.12494147]
[1744337179469,0.5540528,80213.0,80212.0,0.12494147]
[1744337179861,0.4293,80213.0,80212.0,0.12494147]
[1744337180066,0.1975516,80214.0,80213.0,0.1247528]
[1744337180258,0.1975516,80214.0,80213.0,0.2621528]
[1744337181664,0.3608,80222.0,80221.0,0.1247404]
[1744337182061,0.18613642,80226.0,80225.0,0.1247341]
[1744337182870,0.18613642,80226.0,80225.0,0.2674341]
[1744337183290,0.22054876,80233.0,80232.0,0.1247233]
[1744337183487,0.0681,80242.0,80241.0,0.1247093]
[1744337183783,0.1928077,80242.0,80241.0,0.4855093]
[1744337183981,0.10592,80260.0,80249.0,0.1246968]
[1744337184284,0.2054447,80254.0,80249.0,0.1246968]
[1744337184489,0.4231462,80252.0,80248.0,0.1424]
[1744337184790,0.4231462,80252.0,80241.0,0.00018695]
[1744337184791,0.1247077,80242.0,80241.0,0.00018695]
[1744337185281,0.1247077,80242.0,80241.0,0.12489625]
[1744337185673,0.1874528,80250.0,80242.0,0.0623532]
[1744337185877,0.1246984,80248.0,80247.0,0.1246984]
[1744337186085,0.068,80249.0,80248.0,0.1246984]
[1744337186287,0.068,80249.0,80248.0,0.2670984]
[1744337186686,0.1926968,80249.0,80248.0,0.2670984]
[1744337187279,0.1870606,80246.0,80245.0,0.1246984]
[1744337187483,0.1247077,80242.0,80238.0,0.0623565]
[1744337187683,0.4855077,80242.0,80231.0,0.1393]
[1744337188185,0.4855077,80242.0,80241.0,0.12489625]
[1744337188581,0.6355077,80242.0,80241.0,0.12489625]
[1744337189690,0.2747077,80242.0,80241.0,0.12489625]
[1744337190090,0.2747077,80242.0,80241.0,0.26419625]
[1744337190482,0.0623485,80249.0,80245.0,0.0623514]
[1744337190786,0.0724,80249.0,80248.0,0.1246984]
[1744337190990,0.1970968,80249.0,80248.0,0.1246984]
[1744337191185,0.1970968,80249.0,80248.0,0.2660984]
[1744337191384,0.0724,80249.0,80248.0,0.2660984]
[1744337191784,0.1970968,80249.0,80248.0,0.2660984]
[1744337191990,0.2658968,80249.0,80248.0,0.2660984]
[1744337192795,0.0724,80249.0,80248.0,0.2660984]
[1744337193095,0.0004,80250.0,80249.0,0.1246968]
[1744337193696,0.0004,80250.0,80249.0,0.2644968]
[1744337193895,0.1250953,80250.0,80249.0,0.2644968]
[1744337194991,0.1250953,80250.0,80249.0,0.1398]
[1744337195397,0.2004953,80250.0,80249.0,0.1398]
[1744337195892,0.2004953,80250.0,80249.0,0.2644968]
[1744337197797,0.1247015,80246.0,80245.0,0.02682]
[1744337198094,0.0623486,80249.0,80243.0,0.0623527]
[1744337198095,0.1870607,80244.0,80243.0,0.0623527]
[1744337198497,0.2588607,80244.0,80243.0,0.0623527]
[1744337199500,0.2588607,80244.0,80243.0,0.2020527]
[1744337199896,0.3329607,80244.0,80243.0,0.1397]
[1744337200095,0.1247077,80242.0,80241.0,0.00018695]
[1744337200296,0.4855077,80242.0,80241.0,0.00018695]
[1744337200691,0.1247077,80242.0,80241.0,0.00018695]
[1744337201388,0.4855077,80242.0,80241.0,0.00018695]
[1744337202288,0.4855077,80242.0,80241.0,0.12489625]
[1744337202694,0.1247077,80242.0,80241.0,0.12489625]
[1744337203297,0.0623485,80249.0,80245.0,0.0623512]
[1744337203503,0.1870485,80249.0,80248.0,0.1246984]
[1744337203799,0.0004,80250.0,80249.0,0.1246968]
[1744337204494,0.0004,80250.0,80249.0,0.2694968]
[1744337206296,0.0623374,80264.0,80257.0,0.1246844]
[1744337206496,0.12486985,80258.0,80257.0,0.4854844]
[1744337207099,0.00018695,80258.0,80257.0,0.6299844]
[1744337207497,0.00018695,80258.0,80257.0,0.6392923]
[1744337207805,0.124662,80272.0,80271.0,0.1246627]
[1744337208005,0.1250588,80274.0,80273.0,0.1246596]
[1744337208903,0.0004,80274.0,80273.0,0.1246596]
[1744337209201,0.1246611,80272.0,80271.0,0.01101]
[1744337209413,0.1246611,80272.0,80271.0,0.2848727]
[1744337210504,0.1246611,80272.0,80271.0,0.1356727]
[1744337211096,0.1246611,80272.0,80271.0,0.01101]
[1744337212207,0.1246704,80266.0,80265.0,0.12485845]
[1744337212804,0.1246704,80266.0,80265.0,0.00018695]
[1744337213007,0.2655704,80266.0,80265.0,0.00018695]
[1744337214001,0.3909,80266.0,80239.0,0.05797]
[1744337214205,0.4854953,80250.0,80245.0,0.00946344]
[1744337214802,0.4854953,80250.0,80246.0,0.0681]
[1744337215408,0.4854953,80250.0,80241.0,0.00018695]
[1744337215599,0.1246984,80248.0,80241.0,0.22106736]
[1744337215998,0.1246984,80248.0,80245.0,0.01101]
[1744337215999,0.1247015,80246.0,80245.0,0.01101]
[1744337216706,0.1979015,80246.0,80245.0,0.01101]
[1744337217306,0.2708015,80246.0,80245.0,0.01101]
[1744337218306,0.1247031,80245.0,80244.0,0.03074]
[1744337218502,0.1247077,80242.0,80241.0,0.15524496]
[1744337218810,0.1247077,80242.0,80241.0,0.04304496]
[1744337219108,0.1247186,80235.0,80227.0,0.00049858]
[1744337219301,0.4855186,80235.0,80227.0,0.00049858]
[1744337220505,0.1247295,80228.0,80227.0,0.00049858]
[1744337221401,0.2613295,80228.0,80227.0,0.00049858]
[1744337221602,0.1247575,80210.0,80203.0,0.00049873]
[1744337221810,0.3608,80210.0,80204.0,0.1461]
[1744337222015,0.1247668,80204.0,80203.0,0.00049873]
[1744337222210,0.0623772,80212.0,80206.0,0.0623817]
[1744337222508,0.1871244,80217.0,80216.0,0.1247454]
[1744337222703,0.1247481,80216.0,80215.0,0.1461]
[1744337222905,0.1247481,80216.0,80215.0,0.2708497]
[1744337223213,0.1921481,80216.0,80215.0,0.2708497]
[1744337224214,0.3608,80229.0,80215.0,0.3961]
[1744337224401,0.1247093,80242.0,80240.0,0.062355]
[1744337224709,0.0623496,80248.0,80247.0,0.1247]
[1744337225310,0.0623496,80248.0,80247.0,0.07]
[1744337225512,0.0623496,80248.0,80247.0,0.1382]
[1744337226518,0.22317094,80249.0,80248.0,0.1246984]
[1744337226707,0.22317094,80249.0,80248.0,0.2628984]
[1744337226909,0.34786774,80249.0,80248.0,0.2628984]
[1744337227817,0.34786774,80249.0,80248.0,0.27230109]
[1744337228014,0.22317094,80249.0,80248.0,0.27230109]
[1744337228409,0.11097094,80249.0,80248.0,0.52230109]
[1744337228609,0.00018695,80256.0,80255.0,0.1246875]
[1744337228814,0.12487295,80256.0,80255.0,0.4854875]
[1744337229209,0.00018695,80256.0,80255.0,0.4854875]
[1744337229410,0.12487295,80256.0,80255.0,0.5531875]
[1744337229810,0.00018695,80256.0,80255.0,0.5531875]
[1744337230814,0.12487295,80256.0,80255.0,0.5531875]
[1744337231209,0.00018695,80256.0,80255.0,0.5531875]
[1744337232519,0.14864629,80272.0,80271.0,0.1246627]
[1744337232719,0.14864629,80272.0,80271.0,0.4854627]
[1744337233215,0.27330739,80272.0,80271.0,0.4854627]
[1744337233415,0.1246642,80270.0,80269.0,0.271365]
[1744337233716,0.124672,80265.0,80264.0,0.3608]
[1744337233914,0.1246735,80264.0,80263.0,0.00018695]
[1744337234219,0.2699735,80264.0,80263.0,0.12486205]
[1744337234819,0.1991735,80264.0,80263.0,0.19376205]
[1744337235119,0.1991735,80264.0,80263.0,0.26666205]
[1744337237722,0.0623316,80271.0,80263.0,0.50278695]
[1744337237922,0.2548887,80274.0,80273.0,0.1246596]
[1744337238422,0.0004,80274.0,80273.0,0.1246596]
[1744337239025,0.125058,80274.0,80273.0,0.2641596]
[1744337239520,0.194158,80274.0,80273.0,0.2641596]
[1744337239824,0.1375,80274.0,80250.0,0.1056]
[1744337240025,0.1246735,80264.0,80263.0,0.07198695]
[1744337240425,0.1246735,80264.0,80263.0,0.00018695]
[1744337241109,0.0623454,80253.0,80249.0,0.0728]
[1744337241313,0.1247,80247.0,80246.0,0.1745406]
[1744337241526,0.1247,80247.0,80246.0,0.04984]
[1744337242220,0.1247,80247.0,80246.0,0.1745415]
[1744337242221,0.0691,80247.0,80246.0,0.1745415]
[1744337242414,0.0691,80247.0,80246.0,0.3199415]
[1744337242820,0.1938,80247.0,80246.0,0.3199415]
[1744337243726,0.1938,80247.0,80246.0,0.2701015]
[1744337243925,0.1870429,80251.0,80250.0,0.1246953]
[1744337245023,0.1870429,80251.0,80248.0,0.1870462]
[1744337245024,0.1246968,80249.0,80248.0,0.1870462]
[1744337245217,0.0694,80254.0,80251.0,0.0623462]
[1744337245418,0.1246912,80253.0,80252.0,0.1980906]
[1744337245619,0.1246912,80253.0,80252.0,0.2701906]
[1744337248025,0.00018695,80255.0,80254.0,0.1246891]
[1744337250316,0.00018695,80255.0,80254.0,0.2674891]
[1744337250930,0.12487445,80255.0,80254.0,0.2674891]
[1744337251129,0.12487445,80255.0,80254.0,0.1428]
[1744337251431,0.12487445,80255.0,80254.0,0.2674891]
[1744337251932,0.19737445,80255.0,80254.0,0.2674891]
[1744337254023,0.19737445,80255.0,80254.0,0.1944891]
[1744337254424,0.1246891,80254.0,80253.0,0.04984]
[1744337254623,0.1928891,80254.0,80253.0,0.04984]
[1744337255020,0.5536891,80254.0,80253.0,0.04984]
[1744337257222,0.1247015,80246.0,80245.0,0.02407]
[1744337257424,0.4855015,80246.0,80245.0,0.02407]
[1744337257626,0.1247124,80239.0,80238.0,0.00018695]
[1744337257921,0.1247295,80228.0,80220.0,0.00918381]
[1744337258125,0.1247295,80228.0,80211.0,0.0623776]
[1744337258331,0.1247295,80228.0,80217.0,0.1247465]
[1744337258632,0.1247295,80228.0,80219.0,0.1247429]
[1744337258827,0.2663295,80228.0,80221.0,0.08725]
[1744337259537,0.1247388,80222.0,80221.0,0.08725]
[1744337259726,0.1247481,80216.0,80215.0,0.3608522]
[1744337263132,0.1247481,80216.0,80215.0,0.4856019]
[1744337263332,0.1247481,80216.0,80215.0,0.1247497]
[1744337263333,0.23639148,80216.0,80215.0,0.1247497]
[1744337263634,0.1247559,80211.0,80210.0,0.2075781]
[1744337264028,0.1247559,80211.0,80210.0,0.0725]
[1744337264233,0.1247637,80206.0,80205.0,0.3608]
[1744337265034,0.2662637,80206.0,80205.0,0.3608]
[1744337268043,0.1415,80206.0,80205.0,0.3608]
[1744337269535,0.0675,80206.0,80205.0,0.3608]
[1744337270442,0.10536,80220.0,80205.0,0.3608]
[1744337270742,0.0667,80218.0,80205.0,0.3608]
[1744337270943,0.0701,80217.0,80205.0,0.3608]
[1744337271144,0.0701,80217.0,80203.0,0.14089873]
[1744337271443,0.0667,80216.0,80206.0,0.08552]
[1744337271631,0.3608,80209.0,80206.0,0.08552]
[1744337271837,0.0667,80208.0,80206.0,0.08552]
[1744337272038,0.1368,80208.0,80206.0,0.08552]
[1744337272743,0.3608,80226.0,80206.0,0.33552]
[1744337273043,0.0718,80228.0,80207.0,0.1346]
[1744337273436,0.1411,80221.0,80208.0,0.0712]
[1744337274045,0.20898158,80220.0,80208.0,0.0712]
[1744337274342,0.3608,80213.0,80208.0,0.0712]
[1744337274543,0.3608,80213.0,80209.0,0.0667]
[1744337274738,0.1411,80212.0,80206.0,0.08552]
[1744337274945,0.10512,80211.0,80206.0,0.08552]
[1744337275444,0.1411,80210.0,80203.0,0.00049873]
[1744337275636,0.3608,80204.0,80203.0,0.00049873]
[1744337279247,0.10516,80209.0,80203.0,0.00049873]
[1744337279547,0.3608,80206.0,80203.0,0.00049873]
[1744337280348,0.10516,80209.0,80203.0,0.00049873]
[1744337282148,0.3608,80206.0,80203.0,0.00049873]
[1744337283345,0.3608,80206.0,80203.0,0.25049873]
[1744337283550,0.3608,80206.0,80204.0,0.1378]
[1744337283945,0.3608,80206.0,80204.0,0.3878]
[1744337284552,0.3608,80206.0,80204.0,0.1378]
[1744337284847,0.3608,80213.0,80204.0,0.1378]
[1744337285352,0.11164338,80222.0,80204.0,0.1378]
[1744337285652,0.11164338,80222.0,80210.0,0.3608]
[1744337285955,0.47244338,80222.0,80211.0,0.141]
[1744337287053,0.11164338,80222.0,80211.0,0.141]
[1744337287251,0.11164338,80222.0,80218.0,0.3608]
[1744337288049,0.11164338,80222.0,80211.0,0.141]
[1744337288050,0.069,80221.0,80211.0,0.141]
[1744337290554,0.11164338,80224.0,80211.0,0.141]
[1744337291255,0.11164338,80224.0,80218.0,0.3608]
[1744337291843,0.11164338,80224.0,80218.0,0.6108]
[1744337292153,0.14864629,80229.0,80219.0,0.4169]
[1744337292452,0.14864629,80229.0,80226.0,0.3608]
[1744337292652,0.14864629,80229.0,80227.0,0.1461]
[1744337295549,0.14864629,80229.0,80228.0,0.0735]
[1744337296055,0.14864629,80229.0,80228.0,0.2125]
[1744337296958,0.00018695,80236.0,80228.0,0.2125]
[1744337297257,0.00018695,80236.0,80235.0,0.3608]
[1744337297560,0.14864629,80259.0,80235.0,0.3608]
[1744337297864,0.14864629,80259.0,80244.0,0.3608]
[1744337298152,0.14864629,80259.0,80245.0,0.2104]
[1744337298353,0.14864629,80259.0,80245.0,0.6273]
[1744337298562,0.0698,80258.0,80245.0,0.6273]
[1744337299358,0.0698,80258.0,80251.0,0.3608]
[1744337299558,0.0698,80258.0,80252.0,0.1396]
[1744337299758,0.0698,80258.0,80252.0,0.14902341]
[1744337300163,0.00018695,80260.0,80252.0,0.14902341]
[1744337300753,0.00018695,80260.0,80258.0,0.3608]
[1744337300953,0.00018695,80260.0,80259.0,0.1386]
[1744337301454,0.14864629,80277.0,80259.0,0.1386]
[1744337301757,0.0734,80276.0,80270.0,0.3608]
[1744337301963,0.0734,80276.0,80271.0,0.1386]
[1744337302963,0.0731,80275.0,80271.0,0.1386]
[1744337303364,0.0731,80274.0,80271.0,0.1386]
[1744337304766,0.0731,80274.0,80271.0,0.071]
[1744337304967,0.0695,80273.0,80271.0,0.071]
[1744337305468,0.0004,80274.0,80272.0,0.0689]
[1744337305765,0.0004,80274.0,80273.0,0.0734]
[1744337308254,0.00018695,80281.0,80273.0,0.0734]
[1744337308458,0.0735,80285.0,80280.0,0.3608]
[1744337308661,0.0735,80285.0,80281.0,0.1442]
[1744337309362,0.1,80300.0,80281.0,0.23139]
[1744337309560,0.00018695,80291.0,80281.0,0.29949]
[1744337309756,0.00018695,80291.0,80281.0,0.29967682]
[1744337314070,0.00018695,80291.0,80281.0,0.08737682]
[1744337314964,0.36098695,80291.0,80281.0,0.08737682]
[1744337315170,0.0717,80290.0,80281.0,0.08737682]
[1744337315867,0.0723,80289.0,80281.0,0.08737682]
[1744337316269,0.0668,80288.0,80281.0,0.08737682]
[1744337316669,0.0723,80287.0,80281.0,0.08737682]
[1744337317074,0.0668,80286.0,80281.0,0.08737682]
[1744337317470,0.0723,80285.0,80281.0,0.08737682]
[1744337317769,0.0723,80285.0,80281.0,0.22677682]
[1744337317978,0.0668,80284.0,80281.0,0.22677682]
[1744337318576,0.069,80283.0,80281.0,0.22677682]
[1744337319066,0.07,80282.0,80281.0,0.22677682]
[1744337319267,0.07,80282.0,80281.0,0.15767682]
[1744337319462,0.07,80282.0,80281.0,0.00018682]
[1744337319672,0.141,80282.0,80281.0,0.00018682]
[1744337320667,0.141,80282.0,80281.0,0.13588682]
[1744337321076,0.141,80282.0,80281.0,0.06738682]
[1744337321271,0.141,80282.0,80281.0,0.00018682]
[1744337323088,0.2656558,80282.0,80281.0,0.12484412]
[1744337324591,0.141,80282.0,80281.0,0.12484412]
[1744337324884,0.069,80283.0,80281.0,0.12484412]
[1744337324885,0.069,80283.0,80282.0,0.1246556]
[1744337325086,0.00018695,80291.0,80290.0,0.1246432]
[1744337325784,0.12482855,80291.0,80290.0,0.1919432]
[1744337326984,0.26182855,80291.0,80290.0,0.1919432]
[1744337328289,0.00018695,80291.0,80290.0,0.1919432]
[1744337328688,0.12482855,80291.0,80290.0,0.1919432]
[1744337329185,0.00018695,80291.0,80290.0,0.1919432]
[1744337329986,0.00018695,80291.0,80290.0,0.5527432]
[1744337330395,0.14864629,80310.0,80290.0,0.6781]
[1744337330697,0.0708,80309.0,80308.0,0.1246152]
[1744337330993,0.144,80309.0,80308.0,0.1246152]
[1744337331587,0.144,80309.0,80308.0,0.2633152]
[1744337331895,0.2686136,80309.0,80308.0,0.14826325]
[1744337332193,0.2686136,80309.0,80308.0,0.00956325]
[1744337332395,0.2063069,80309.0,80303.0,0.0623112]
[1744337332597,0.124626,80301.0,80300.0,0.12481382]
[1744337332799,0.115386,80301.0,80300.0,0.12481382]
[1744337333389,0.260586,80301.0,80300.0,0.12481382]
[1744337336296,0.260586,80301.0,80300.0,0.13431538]
[1744337337996,0.621386,80301.0,80300.0,0.00018682]
[1744337339692,0.63342682,80301.0,80300.0,0.00018682]
[1744337341496,0.56052682,80301.0,80300.0,0.00018682]
[1744337341694,0.62822682,80301.0,80300.0,0.00018682]
[1744337341889,0.87822682,80301.0,80300.0,2e-08]
[1744337342094,0.87822682,80301.0,80279.0,0.1246596]
[1744337342095,0.124658,80280.0,80279.0,0.1246596]
[1744337342399,0.124658,80280.0,80279.0,0.1970596]
[1744337342602,0.556158,80280.0,80279.0,0.2642596]
[1744337344295,0.627758,80280.0,80279.0,0.1396]
[1744337344602,0.0623311,80278.0,80277.0,0.21949969]
[1744337344801,0.1869951,80278.0,80277.0,0.34416179]
[1744337345002,0.3292951,80278.0,80277.0,0.34416179]
[1744337345203,0.3292951,80278.0,80277.0,0.21949969]
[1744337346497,0.0707,80278.0,80277.0,0.34416209]
[1744337346699,0.062325,80285.0,80277.0,0.34416209]
[1744337346700,0.3608,80290.0,80284.0,0.0623251]
[1744337346905,0.07198682,80288.0,80287.0,0.1246468]
[1744337347803,0.00018682,80288.0,80287.0,0.1246468]
[1744337347991,0.00018682,80288.0,80287.0,0.3746468]
[1744337348196,0.1869404,80304.0,80303.0,0.0623103]
[1744337348399,0.2587404,80304.0,80303.0,0.0623103]
[1744337349405,0.2587404,80304.0,80303.0,0.2051103]
[1744337350904,0.0718,80304.0,80303.0,0.2051103]
[1744337351098,0.0623075,80308.0,80307.0,0.1246156]
[1744337351498,0.131205,80311.0,80304.0,0.0623101]
[1744337351499,0.0689,80311.0,80310.0,0.1246109]
[1744337351705,0.1935094,80311.0,80310.0,0.1246109]
[1744337352407,0.1935094,80311.0,80310.0,0.1960109]
[1744337353404,0.1246109,80310.0,80309.0,0.0731]
[1744337353607,0.1246311,80297.0,80296.0,0.4854326]
[1744337353807,0.1246311,80297.0,80296.0,0.6299326]
[1744337356910,0.0712,80299.0,80298.0,0.1246294]
[1744337356911,0.1958286,80299.0,80298.0,0.1246294]
[1744337357711,0.1246286,80299.0,80298.0,0.1246294]
[1744337358008,0.0728,80303.0,80302.0,0.1246232]
[1744337358204,0.1246174,80306.0,80305.0,0.1246185]
[1744337358607,0.0623055,80310.0,80309.0,0.1869147]
[1744337359004,0.0623055,80310.0,80309.0,0.3310147]
[1744337359203,0.1869178,80310.0,80309.0,0.3310147]
[1744337361409,0.1869178,80310.0,80309.0,0.2064055]
[1744337367319,0.1869178,80310.0,80309.0,0.1332055]
[1744337367620,0.1869178,80310.0,80309.0,0.0623055]
[1744337367817,0.1246171,80306.0,80305.0,0.07644]
[1744337368011,0.1246171,80306.0,80305.0,0.2010586]
[1744337368819,0.1246171,80306.0,80305.0,0.3439586]
[1744337369316,0.1246171,80306.0,80305.0,0.2675186]
[1744337372521,0.1971171,80306.0,80305.0,0.2675186]
[1744337381423,0.0725,80306.0,80305.0,0.2675186]
[1744337382824,0.14901969,80307.0,80306.0,0.124617]
[1744337383029,0.14901969,80307.0,80306.0,0.263917]
[1744337385223,0.27363509,80307.0,80306.0,0.2639169]